bitfinex/quotes_SOLUSD_20240603
["timestamp","ask_amount","ask_price","bid_price","bid_amount"]
[1717373668559,4.35,163.39,163.36,6.124]
[1717373670654,2.2639,163.43,163.36,6.124]
[1717373672156,19.6638,163.44,163.37,0.17]
[1717373672456,4.35,163.41,163.37,6.5344]
[1717373672959,2.2638,163.44,163.37,6.5344]
[1717373673140,4.35,163.41,163.37,6.5344]
[1717373673868,2.2638,163.44,163.37,6.5344]
[1717373674047,4.35,163.41,163.37,6.5344]
[1717373674763,2.2638,163.44,163.37,6.5344]
[1717373674951,4.35,163.41,163.37,6.5344]
[1717373675561,2.2638,163.44,163.37,6.5344]
[1717373675745,2.2638,163.44,163.39,6.124]
[1717373675950,4.35,163.43,163.39,12.2472]
[1717373677241,2.2638,163.44,163.39,12.2472]
[1717373677653,4.35,163.43,163.39,12.2472]
[1717373677851,2.2638,163.44,163.39,12.2472]
[1717373678062,4.35,163.43,163.39,12.2472]
[1717373678651,15.6064,163.5,163.39,12.2472]
[1717373678652,2.2636,163.46,163.39,12.2472]
[1717373678855,2.2637,163.45,163.4,0.17]
[1717373679071,4.35,163.43,163.4,6.3177]
[1717373679676,4.35,163.42,163.4,6.3177]
[1717373679843,6.7901,163.48,163.37,15.78700469]
[1717373680169,4.35,163.41,163.38,0.17]
[1717373680377,4.35,163.4,163.38,0.17]
[1717373681360,2.2638,163.45,163.38,0.17]
[1717373681560,4.35,163.41,163.38,0.17]
[1717373683379,2.2638,163.44,163.38,0.17]
[1717373683662,4.35,163.41,163.38,0.17]
[1717373683864,2.2637,163.45,163.38,6.464]
[1717373684174,4.35,163.43,163.38,12.4671]
[1717373684472,4.35,163.42,163.38,12.4671]
[1717373687648,2.2637,163.45,163.38,12.4671]
[1717373687849,4.35,163.42,163.38,12.4671]
[1717373688273,2.2637,163.45,163.38,12.4671]
[1717373688449,4.35,163.42,163.38,12.4671]
[1717373689068,4.35,163.41,163.38,6.3431]
[1717373692052,2.2638,163.44,163.39,6.4106]
[1717373692253,4.35,163.41,163.39,6.4106]
[1717373693550,2.2638,163.44,163.39,6.4106]
[1717373693856,4.35,163.42,163.39,6.4106]
[1717373695072,4.35,163.42,163.39,12.5346]
[1717373697379,2.2638,163.44,163.39,12.5346]
[1717373697557,4.35,163.42,163.39,12.5346]
[1717373698355,2.2638,163.44,163.39,12.5346]
[1717373698770,4.35,163.42,163.39,12.5346]
[1717373699863,4.35,163.42,163.39,6.124]
[1717373700062,4.35,163.41,163.39,6.124]
[1717373701259,4.35,163.41,163.38,9.52818084]
[1717373701461,4.35,163.41,163.38,6.464]
[1717373702094,4.35,163.39,163.37,9.18818084]
[1717373702456,4.35,163.38,163.36,9.18818084]
[1717373702693,4.35,163.38,163.36,15.31218084]
[1717373702981,4.35,163.37,163.36,6.124]
[1717373703905,4.35,163.37,163.32,6.124]
[1717373704194,4.35,163.36,163.32,12.5501]
[1717373704394,2.2642,163.42,163.32,21.74196406]
[1717373704680,4.35,163.39,163.34,10.474]
[1717373704880,4.35,163.39,163.35,21.74196406]
[1717373705895,4.35,163.4,163.35,21.74196406]
[1717373706998,2.2641,163.42,163.35,12.5501]
[1717373707201,4.5266,163.48,163.36,4.69]
[1717373707499,4.5266,163.48,163.39,6.4852]
[1717373707500,4.35,163.42,163.39,6.4852]
[1717373707658,4.35,163.43,163.39,6.4852]
[1717373708467,4.35,163.42,163.39,6.4852]
[1717373708895,4.35,163.41,163.39,6.4852]
[1717373709080,4.35,163.41,163.38,6.294]
[1717373709257,4.35,163.41,163.39,0.17]
[1717373709904,4.35,163.42,163.39,0.17]
[1717373711267,2.2635,163.46,163.39,6.1943]
[1717373711472,4.35,163.44,163.4,6.124]
[1717373711865,4.35,163.44,163.43,9.18802522]
[1717373712075,2.2635,163.46,163.43,9.18802522]
[1717373712276,4.35,163.44,163.43,9.18802522]
[1717373713288,6.5852,163.49,163.43,9.18802522]
[1717373713494,4.35,163.44,163.43,9.18802522]
[1717373713870,4.35,163.44,163.43,9.18784056]
[1717373714067,4.35,163.44,163.42,9.18784056]
[1717373714266,4.35,163.43,163.42,9.18784056]
[1717373714882,2.2637,163.45,163.42,9.18784056]
[1717373715097,4.35,163.43,163.42,9.18784056]
[1717373716687,4.35,163.43,163.4,6.124]
[1717373716991,4.35,163.43,163.42,9.18795919]
[1717373717494,2.2636,163.46,163.42,9.18795919]
[1717373717709,4.35,163.43,163.42,9.18795919]
[1717373717872,4.35,163.44,163.42,9.18795919]
[1717373718066,2.2636,163.46,163.42,9.18795919]
[1717373718491,4.35,163.44,163.43,9.18795919]
[1717373718669,4.35,163.44,163.42,9.18795919]
[1717373721197,4.35,163.43,163.42,9.18795919]
[1717373721882,4.35,163.44,163.42,9.18795919]
[1717373722212,4.35,163.46,163.43,9.35795796]
[1717373722499,4.35,163.46,163.43,15.25375796]
[1717373722699,2.2632,163.49,163.43,15.25375796]
[1717373722993,4.35,163.47,163.43,15.25375796]
[1717373723287,2.2632,163.49,163.43,15.25375796]
[1717373723506,4.35,163.46,163.43,15.25375796]
[1717373723894,4.35,163.45,163.43,15.25375796]
[1717373724486,2.2634,163.47,163.43,6.0658]
[1717373724679,2.2633,163.48,163.45,9.18650067]
[1717373724877,4.35,163.46,163.45,9.18650067]
[1717373725194,4.35,163.46,163.44,9.18650067]
[1717373725397,4.35,163.46,163.45,9.18650067]
[1717373726274,4.35,163.46,163.41,0.34]
[1717373726275,4.35,163.46,163.44,9.18650067]
[1717373727791,4.35,163.46,163.44,9.18670813]
[1717373729610,4.35,163.45,163.44,9.18670813]
[1717373729909,4.35,163.45,163.43,9.18670813]
[1717373730081,4.35,163.44,163.43,9.18670813]
[1717373730408,4.35,163.44,163.42,15.30570813]
[1717373730581,4.35,163.44,163.42,9.18670813]
[1717373730900,2.2634,163.47,163.42,9.18670813]
[1717373731102,4.35,163.44,163.42,9.18670813]
[1717373731901,4.35,163.43,163.41,9.35670813]
[1717373732109,4.35,163.42,163.41,9.18670813]
[1717373732403,4.35,163.42,163.39,9.18670813]
[1717373732618,4.35,163.41,163.39,6.119]
[1717373734913,4.35,163.41,163.38,15.64780736]
[1717373735121,2.2635,163.46,163.38,21.91810736]
[1717373735122,4.35,163.42,163.38,21.91810736]
[1717373735408,4.35,163.42,163.39,9.18880736]
[1717373737287,4.35,163.42,163.4,9.18880736]
[1717373738501,4.35,163.42,163.39,9.18880736]
[1717373739008,4.35,163.42,163.4,0.17]
[1717373739386,4.35,163.42,163.4,9.35880736]
[1717373739582,2.2634,163.48,163.4,9.35880736]
[1717373739809,2.2634,163.48,163.41,15.78580736]
[1717373739810,4.35,163.45,163.41,15.78580736]
[1717373739993,2.2631,163.5,163.42,0.17]
[1717373740319,4.35,163.46,163.42,15.78580736]
[1717373740495,4.35,163.46,163.43,9.35880736]
[1717373741113,21.9257,163.52,163.43,9.35880736]
[1717373741114,4.35,163.45,163.43,9.35880736]
[1717373741300,4.35,163.45,163.42,9.35880736]
[1717373741685,4.35,163.45,163.42,0.17]
[1717373741887,17.4,163.52,163.42,15.43209437]
[1717373742104,17.4,163.52,163.43,0.17]
[1717373742313,4.35,163.46,163.43,0.17]
[1717373742704,4.35,163.46,163.43,9.35646882]
[1717373743422,2.2628,163.52,163.44,6.7692]
[1717373743628,4.35,163.5,163.44,17.2382]
[1717373743796,2.2628,163.52,163.46,15.30495137]
[1717373743993,4.35,163.5,163.46,15.30495137]
[1717373744194,2.2628,163.52,163.46,6.119]
[1717373744395,4.35,163.5,163.46,15.30495137]
[1717373744900,4.35,163.49,163.46,15.30495137]
[1717373745102,4.35,163.49,163.46,6.119]
[1717373745397,4.35,163.5,163.46,6.119]
[1717373745621,4.35,163.5,163.47,0.17]
[1717373746009,4.35,163.51,163.47,0.17]
[1717373746517,4.35,163.5,163.47,0.17]
[1717373747398,2.2625,163.53,163.47,0.17]
[1717373747716,4.35,163.5,163.47,0.17]
[1717373749315,2.2625,163.53,163.47,0.17]
[1717373749520,4.35,163.53,163.47,11.1451]
[1717373749900,4.35,163.54,163.48,4.35]
[1717373750111,0.7985576,163.55,163.49,6.54]
[1717373750304,4.35,163.54,163.49,6.54]
[1717373750712,0.7985576,163.55,163.49,6.54]
[1717373751098,4.35,163.53,163.49,6.54]
[1717373752912,4.35,163.52,163.49,0.34]
[1717373754321,3.0608576,163.55,163.49,0.34]
[1717373754524,4.35,163.52,163.49,0.34]
[1717373755536,3.0608576,163.55,163.49,0.34]
[1717373755732,4.35,163.52,163.49,0.34]
[1717373755910,3.0608576,163.55,163.49,0.34]
[1717373756424,4.35,163.52,163.49,0.34]
[1717373756826,4.35,163.52,163.48,6.54]
[1717373758639,3.0608576,163.55,163.48,6.54]
[1717373758818,4.35,163.52,163.48,6.54]
[1717373761044,0.7985576,163.55,163.48,6.54]
[1717373761343,4.35,163.53,163.48,6.54]
[1717373762538,4.35,163.53,163.49,6.4973]
[1717373762837,4.35,163.53,163.5,0.17]
[1717373763411,4.35,163.52,163.48,0.17]
[1717373763812,4.35,163.52,163.47,0.34]
[1717373764030,4.35,163.51,163.47,0.34]
[1717373764253,4.35,163.51,163.47,6.4894]
[1717373766433,2.2625,163.53,163.47,0.34]
[1717373766670,4.35,163.49,163.46,12.6084]
[1717373766933,0.7985576,163.55,163.46,12.6084]
[1717373766934,4.35,163.5,163.46,12.6084]
[1717373768945,4.35,163.49,163.46,12.6084]
[1717373769449,4.35,163.48,163.46,12.6084]
[1717373769954,4.35,163.48,163.43,58.98104953]
[1717373769955,4.35,163.47,163.43,9.18433797]
[1717373770129,4.35,163.46,163.42,9.18433797]
[1717373770455,4.35,163.46,163.42,6.2204]
[1717373771342,4.35,163.45,163.42,6.2204]
[1717373772121,4.35,163.45,163.43,6.119]
[1717373773646,4.35,163.45,163.42,6.3904]
[1717373773844,4.35,163.45,163.43,6.289]
[1717373774224,4.35,163.45,163.43,6.119]
[1717373774962,4.35,163.45,163.42,6.2204]
[1717373775127,4.35,163.45,163.43,6.119]
[1717373775328,4.35,163.44,163.41,0.34]
[1717373775637,4.35,163.43,163.41,0.34]
[1717373775841,4.35,163.43,163.4,0.17]
[1717373776234,4.35,163.43,163.4,6.3783]
[1717373776633,2.2631,163.49,163.41,6.119]
[1717373776852,4.35,163.45,163.41,12.3273]
[1717373777935,4.35,163.45,163.42,0.17]
[1717373781269,4.35,163.44,163.42,0.17]
[1717373783948,2.2631,163.49,163.42,0.17]
[1717373784166,2.2631,163.49,163.42,0.34]
[1717373784362,4.35,163.45,163.42,0.34]
[1717373784570,2.2631,163.49,163.43,6.119]
[1717373784773,21.9257,163.52,163.44,0.34]
[1717373784774,4.35,163.47,163.44,0.34]
[1717373785154,4.35,163.47,163.44,0.17]
[1717373785858,4.35,163.46,163.44,0.17]
[1717373786858,4.35,163.46,163.43,6.289]
[1717373788860,4.35,163.46,163.43,0.17]
[1717373789070,4.35,163.44,163.42,6.289]
[1717373791466,4.35,163.45,163.42,6.289]
[1717373793593,4.35,163.45,163.42,0.17]
[1717373793789,4.35,163.45,163.42,6.459]
[1717373794157,4.35,163.44,163.41,9.1871484]
[1717373794387,4.35,163.42,163.39,9.1871484]
[1717373794598,4.35,163.41,163.38,9.1871484]
[1717373794769,4.35,163.4,163.39,6.119]
[1717373794961,4.35,163.4,163.37,6.119]
[1717373797178,4.35,163.4,163.36,6.459]
[1717373797378,4.35,163.4,163.37,0.34]
[1717373798368,4.35,163.4,163.36,0.34]
[1717373799098,10.4093,163.44,163.36,0.34]
[1717373799266,4.35,163.38,163.35,0.34]
[1717373799469,4.35,163.37,163.34,0.34]
[1717373799795,4.35,163.35,163.32,9.18888117]
[1717373799970,4.35,163.35,163.29,10.8428]
[1717373799971,4.35,163.34,163.3,6.4928]
[1717373800170,4.35,163.34,163.3,12.6118]
[1717373800686,4.35,163.34,163.3,6.119]
[1717373800870,4.35,163.33,163.3,6.119]
[1717373801487,4.35,163.34,163.3,6.119]
[1717373801792,4.35,163.34,163.29,6.119]
[1717373802195,4.35,163.34,163.3,0.17]
[1717373802382,4.35,163.34,163.3,0.34]
[1717373804307,4.35,163.34,163.22,11.39356249]
[1717373804308,4.35,163.31,163.24,41.06]
[1717373804477,4.35,163.29,163.24,42.8484]
[1717373804895,4.35,163.3,163.24,47.1984]
[1717373805288,4.35,163.3,163.25,0.17]
[1717373805631,6.1617,163.34,163.25,6.6998]
[1717373805899,4.35,163.29,163.25,6.5298]
[1717373807301,4.35,163.29,163.26,0.17]
[1717373807505,4.35,163.3,163.26,0.34]
[1717373808801,4.35,163.29,163.26,0.34]
[1717373809790,4.35,163.3,163.26,0.34]
[1717373812416,8.4269,163.34,163.26,0.34]
[1717373812587,4.35,163.3,163.26,0.34]
[1717373819813,4.35,163.29,163.26,0.17]
[1717373820014,4.35,163.28,163.26,0.17]
[1717373820395,4.35,163.28,163.22,47.179]
[1717373820724,4.35,163.26,163.22,6.119]
[1717373820909,4.35,163.25,163.22,6.119]
[1717373821315,4.35,163.24,163.22,6.119]
[1717373822019,4.35,163.25,163.22,6.119]
[1717373822613,4.35,163.25,163.2,6.119]
[1717373822918,6.1617,163.34,163.21,107.179]
[1717373823090,2.2656,163.32,163.23,4.35]
[1717373823291,4.35,163.29,163.24,0.17]
[1717373823603,4.35,163.28,163.24,0.17]
[1717373823921,4.35,163.28,163.23,0.17]
[1717373824131,4.35,163.28,163.23,0.34]
[1717373824417,4.35,163.27,163.23,0.34]
[1717373824619,4.35,163.26,163.23,0.34]
[1717373824822,2.2658,163.3,163.22,0.34]
[1717373824823,4.35,163.25,163.22,0.34]
[1717373826209,4.35,163.25,163.22,0.17]
[1717373827399,4.35,163.24,163.22,0.17]
[1717373827707,4.35,163.23,163.19,6.119]
[1717373827904,4.35,163.23,163.2,0.34]
[1717373828997,4.35,163.22,163.19,6.119]
[1717373829192,4.35,163.21,163.19,6.119]
[1717373829627,2.2663,163.26,163.19,6.119]
[1717373829628,4.35,163.22,163.19,6.119]
[1717373831221,4.35,163.2,163.18,0.17]
[1717373831409,4.5333,163.24,163.15,6.119]
[1717373831599,2.2668,163.22,163.15,6.119]
[1717373832022,4.35,163.17,163.15,6.119]
[1717373832217,4.35,163.16,163.14,0.08831386]
[1717373832406,4.35,163.2,163.14,0.08831386]
[1717373832407,4.35,163.15,163.14,0.08831386]
[1717373833425,4.35,163.16,163.14,0.08831386]
[1717373833933,4.35,163.15,163.14,0.08831386]
[1717373834804,13.2659,163.15,163.14,0.08831386]
[1717373839131,28.3393,163.15,163.14,0.08831386]
[1717373840910,2.2676,163.17,163.14,0.08831386]
[1717373841224,4.35,163.15,163.14,0.08831386]
[1717373841535,6.6178,163.15,163.14,0.08831386]
[1717373842404,12.903,163.15,163.14,0.08831386]
[1717373842612,28.7977,163.15,163.14,0.08831386]
[1717373845225,2.2681,163.13,163.05,6.119]
[1717373845435,4.35,163.09,163.06,0.17]
[1717373846208,4.35,163.09,163.05,6.119]
[1717373849929,2.2683,163.12,163.05,6.119]
[1717373850120,4.35,163.09,163.05,6.119]
[1717373852040,4.35,163.08,163.05,6.119]
[1717373852338,4.35,163.08,163.04,0.34]
[1717373852519,4.35,163.08,163.05,0.17]
[1717373852720,2.2684,163.11,163.05,0.17]
[1717373852937,2.2681,163.13,163.05,0.17]
[1717373853138,4.35,163.09,163.04,6.5101]
[1717373854338,6.2852,163.15,163.05,12.16805739]
[1717373854546,4.35,163.13,163.07,4.35]
[1717373854839,4.35,163.12,163.08,0.17]
[1717373855022,4.35,163.11,163.08,0.17]
[1717373855221,2.268,163.14,163.07,0.34]
[1717373855624,4.35,163.11,163.07,0.34]
[1717373856042,2.268,163.14,163.07,0.34]
[1717373856237,4.35,163.11,163.06,0.34]
[1717373856640,2.2681,163.13,163.06,0.34]
[1717373856821,4.35,163.09,163.05,6.459]
[1717373858629,4.35,163.08,163.05,0.17]
[1717373858831,4.35,163.07,163.05,0.17]
[1717373859557,4.35,163.08,163.05,0.17]
[1717373861346,4.35,163.06,163.0,6.0985]
[1717373861543,4.35,163.03,163.0,6.0985]
[1717373861926,4.35,163.03,162.99,0.7985576]
[1717373863552,2.2688,163.08,163.0,0.17]
[1717373863757,4.35,163.03,163.0,0.17]
[1717373866451,4.35,163.05,163.0,0.17]
[1717373866657,4.35,163.03,163.0,0.34]
[1717373867169,2.2689,163.07,163.0,0.34]
[1717373867364,4.35,163.03,163.0,0.34]
[1717373869671,4.35,163.12,163.0,4.69]
[1717373869967,4.35,163.06,163.01,10.5544]
[1717373870147,4.35,163.06,163.02,0.17]
[1717373870654,4.35,163.05,163.01,6.2044]
[1717373871046,4.35,163.05,163.0,0.34]
[1717373871537,4.5367,163.12,163.0,58.7972]
[1717373871741,4.35,163.06,163.01,4.35]
[1717373871958,4.35,163.06,163.02,6.9837]
[1717373872172,2.2688,163.08,163.0,0.34]
[1717373872379,4.35,163.04,163.0,0.34]
[1717373872680,4.35,163.03,163.0,0.17]
[1717373872961,4.35,163.02,163.0,0.17]
[1717373877664,4.35,163.03,163.0,0.17]
[1717373880083,4.35,163.02,163.0,0.17]
[1717373880368,4.35,163.02,162.99,0.7985576]
[1717373880975,4.35,163.01,162.99,0.7985576]
[1717373881964,2.2692,163.05,162.99,0.7985576]
[1717373882188,4.35,163.03,163.0,0.17]
[1717373882351,4.35,163.04,163.0,0.17]
[1717373883563,4.35,163.03,163.0,0.17]
[1717373883975,2.2692,163.05,163.0,0.17]
[1717373884181,4.35,163.03,163.0,0.17]
[1717373884499,4.35,163.03,162.99,0.7985576]
[1717373885188,4.35,163.03,163.0,0.17]
[1717373885485,4.35,163.02,162.99,0.7985576]
[1717373886056,4.35,163.0,162.99,0.7985576]
[1717373886377,2.2697,163.02,162.99,0.7985576]
[1717373887463,2.2698,163.01,162.99,0.7985576]
[1717373887777,4.35,163.0,162.99,0.7985576]
[1717373889081,4.35,163.0,162.93,6.20731386]
[1717373889082,30.8,163.0,162.93,0.08831386]
[1717373889284,4.35,162.94,162.93,0.08831386]
[1717373890699,33.4499,163.0,162.89,0.1281399]
[1717373890700,26.6401,163.0,162.89,0.1281399]
[1717373890912,4.35,162.93,162.89,0.1281399]
[1717373892199,4.35,162.92,162.89,0.1281399]
[1717373892703,4.35,162.96,162.89,0.1281399]
[1717373892996,4.35,162.92,162.89,0.1281399]
[1717373893400,4.35,162.91,162.89,0.1281399]
[1717373895008,2.2705,162.96,162.89,6.1365399]
[1717373895185,2.2704,162.97,162.9,0.17]
[1717373895384,4.35,162.95,162.9,0.34]
[1717373895698,4.35,162.95,162.91,6.3839]
[1717373896481,4.5392,163.03,162.92,6.4698]
[1717373896794,4.35,162.97,162.93,0.34]
[1717373897130,4.35,162.98,162.93,0.34]
[1717373897684,4.35,162.97,162.93,0.34]
[1717373897900,2.2698,163.01,162.93,0.34]
[1717373898111,2.2697,163.02,162.92,0.34]
[1717373898316,4.35,162.99,162.94,4.35]
[1717373898492,4.35,162.99,162.95,6.6805]
[1717373898910,4.35,162.98,162.95,6.6805]
[1717373899106,4.35,162.98,162.95,0.17]
[1717373899388,4.35,162.98,162.92,4.52]
[1717373899593,4.35,162.97,162.93,0.17]
[1717373900133,4.35,162.96,162.92,6.2954]
[1717373900627,35.1994,163.04,162.93,6.2954]
[1717373900628,2.2697,163.02,162.93,6.2954]
[1717373900807,4.35,163.0,162.96,6.1254]
[1717373901317,4.35,162.99,162.96,6.1254]
[1717373901997,4.35,162.98,162.94,0.17]
[1717373902197,4.35,162.98,162.94,6.1254]
[1717373902516,4.35,162.98,162.94,12.2444]
[1717373902894,4.35,162.98,162.94,6.1254]
[1717373903430,4.2860743,162.98,162.94,6.1254]
[1717373903926,4.2860743,162.98,162.94,12.2444]
[1717373904583,4.2860743,162.98,162.94,6.1254]
[1717373904814,4.2860743,162.98,162.94,12.2444]
[1717373905000,4.2860743,162.98,162.94,6.1254]
[1717373905193,2.2697,163.02,162.94,6.1254]
[1717373905407,2.2694,163.04,162.96,4.35]
[1717373905610,4.35,163.02,162.97,6.3972]
[1717373905935,4.35,163.01,162.97,6.2272]
[1717373906520,4.35,163.01,162.95,4.52]
[1717373906521,4.35,162.98,162.91,9.21236542]
[1717373906689,4.35,162.96,162.92,6.2272]
[1717373907188,4.35,162.97,162.92,6.2272]
[1717373908323,4.35,162.97,162.93,0.17]
[1717373908501,4.35,162.97,162.93,6.6245]
[1717373910207,4.35,162.97,162.93,6.4545]
[1717373910399,4.35,162.96,162.93,6.4545]
[1717373911094,4.35,162.96,162.9,10.469]
[1717373911095,2.2704,162.97,162.9,6.0364]
[1717373911292,4.35,162.94,162.9,6.0364]
[1717373912314,4.35,162.94,162.9,12.1554]
[1717373912913,4.35,162.94,162.9,6.0364]
[1717373913302,4.35,162.94,162.9,12.1554]
[1717373913508,4.35,162.94,162.9,6.0364]
[1717373914424,4.35,162.94,162.9,12.1554]
[1717373915626,4.35,162.94,162.91,6.119]
[1717373916416,4.35,162.93,162.9,6.0364]
[1717373916616,4.35,162.93,162.89,0.1281399]
[1717373916825,4.35,162.92,162.89,0.1281399]
[1717373917001,2.2707,162.94,162.89,0.1281399]
[1717373917197,4.35,162.91,162.89,0.1281399]
[1717373918023,4.35,162.92,162.89,0.1281399]
[1717373920495,4.35,162.93,162.9,6.5974]
[1717373921105,4.35,162.93,162.89,0.1281399]
[1717373923817,4.35,162.92,162.89,0.1281399]
[1717373925601,4.35,162.92,162.89,6.5273399]
[1717373926126,3.099247,162.94,162.89,6.5273399]
[1717373926330,7.449247,162.94,162.89,6.5273399]
[1717373927027,7.449247,162.94,162.89,10.8773399]
[1717373927703,4.35,162.93,162.89,6.5273399]
[1717373930432,3.099247,162.94,162.89,6.5273399]
[1717373930748,4.35,162.93,162.89,6.5273399]
[1717373933022,4.35,162.92,162.89,6.5273399]
[1717373933926,3.099247,162.94,162.89,6.5273399]
[1717373934123,4.35,162.93,162.89,6.5273399]
[1717373934326,3.099247,162.94,162.89,6.5273399]
[1717373934530,4.35,162.93,162.89,6.5273399]
[1717373935429,4.35,162.93,162.89,15.74314885]
[1717373936520,4.35,162.93,162.89,6.5273399]
[1717373937021,4.35,162.93,162.9,6.3808]
[1717373937652,3.099247,162.94,162.9,6.3808]
[1717373937824,4.35,162.93,162.9,6.3808]
[1717373938721,3.099247,162.94,162.9,6.3808]
[1717373938920,4.35,162.93,162.9,6.3808]
[1717373941949,4.35,162.93,162.89,9.34394885]
[1717373942125,5.369947,162.94,162.89,9.34394885]
[1717373942454,5.369947,162.94,162.89,0.1281399]
[1717373942826,3.099247,162.94,162.89,0.1281399]
[1717373943128,3.099247,162.94,162.89,6.3521399]
[1717373943324,3.099247,162.94,162.91,6.224]
[1717373943543,3.099247,162.94,162.92,6.224]
[1717373945559,3.099247,162.94,162.93,21.6634]
[1717373945773,3.099247,162.94,162.93,26.3534]
[1717373946265,3.099247,162.94,162.93,32.4724]
[1717373946444,3.099247,162.94,162.93,29.79993927]
[1717373946634,3.099247,162.94,162.93,32.4724]
[1717373946831,3.099247,162.94,162.93,45.13138226]
[1717373947037,3.099247,162.94,162.93,29.79994548]
[1717373947270,3.099247,162.94,162.93,126.50994548]
[1717373947568,3.099247,162.94,162.93,132.62894548]
[1717373947769,6.151,163.1,162.96,42.829]
[1717373948062,4.35,163.06,163.01,10.877]
[1717373948236,26.4766,163.12,163.02,6.527]
[1717373948237,2.2686,163.09,163.02,6.527]
[1717373948433,2.2686,163.09,163.02,10.877]
[1717373948743,4.35,163.09,163.05,6.2767]
[1717373950961,2.2684,163.11,163.05,6.2767]
[1717373951257,4.35,163.09,163.05,6.2767]
[1717373952236,4.35,163.08,163.05,6.2767]
[1717373952437,4.35,163.07,163.03,6.8662]
[1717373952748,4.35,163.07,163.04,6.5262]
[1717373952955,4.35,163.08,163.0,21.7404]
[1717373953276,4.35,163.04,163.0,6.5262]
[1717373953646,4.35,163.04,163.0,12.6452]
[1717373955175,4.35,163.04,163.01,6.47]
[1717373955395,4.35,163.05,163.01,12.589]
[1717373956043,4.35,163.05,163.01,6.47]
[1717373956245,4.35,163.05,163.01,12.589]
[1717373957159,2.2688,163.08,163.01,12.589]
[1717373957457,17.4,163.12,163.02,6.1188]
[1717373957458,4.35,163.06,163.02,6.1188]
[1717373957758,2.2685,163.11,163.02,6.1188]
[1717373957950,2.2685,163.11,163.04,4.35]
[1717373958134,4.35,163.1,163.04,4.35]
[1717373958339,4.35,163.09,163.04,4.35]
[1717373958582,4.35,163.08,163.04,6.1188]
[1717373958942,4.35,163.07,163.03,0.34]
[1717373959150,4.35,163.06,163.01,4.35]
[1717373959461,4.35,163.05,163.01,6.1188]
[1717373960179,4.35,163.04,163.0,0.17]
[1717373960380,4.35,163.03,162.97,12.639]
[1717373960568,4.35,163.03,162.98,10.4599]
[1717373960751,4.35,163.03,162.99,6.119]
[1717373960956,2.2691,163.06,162.99,6.119]
[1717373961158,4.35,163.04,162.99,16.5789]
[1717373962066,4.35,163.04,163.0,0.17]
[1717373968195,4.35,163.03,162.99,6.119]
[1717373968558,4.35,163.03,162.98,0.17]
[1717373968787,4.35,163.03,162.98,0.34]